{"text_format":"3","workbook":"xlsx","n_sheets":2,"sheets":["Aloitus","Palvelulasku"],"not_rendered":{"images":1,"defined_names":1},"read":"whole","date_system":"1900"}

{"sheet":"Aloitus","index":0,"n_rows":8,"n_cols":2,"rows_kept":8}
[null,"TIETOJA TÄSTÄ MALLISTA"]
[null,"Tämän mallin avulla voit luoda palvelulaskun."]
[null,"Kirjoita laskun numero, päivämäärä, yrityksen nimi, osoite, iskulause ja laskutusosoite."]
[null,"Anna tiedot taulukoihin."]
[null,"Summa lasketaan automaattisesti."]
[null,"Huomautus: "]
[null,"PALVELULASKU-laskentataulukon sarakkeessa A on lisäohjeita. Tämä teksti on piilotettu tarkoituksella. Jos haluat poistaa tekstin, valitse sarake A ja valitse sitten POISTA. Jos haluat tuoda tekstin näkyviin, valitse sarake A ja muuta sitten fonttiväriä."]
[null,"Jos haluat lisätietoja jostakin taulukosta, paina kyseisessä taulukossa VAIHTO ja sitten F10-näppäintä, valitse TAULUKKO-vaihtoehto ja valitse sitten VAIHTOEHTOINEN TEKSTI."]

{"sheet":"Palvelulasku","index":1,"n_rows":44,"n_cols":5,"rows_kept":44,"merged":[[0,1,0,2],[0,3,0,4],[2,1,2,3],[3,1,3,3],[4,1,4,2],[5,1,5,2],[6,1,6,2],[7,1,7,2],[41,1,41,2],[41,3,41,4],[43,1,43,4]]}
[null,"Logon paikkamerkki on tässä solussa.",null,"LASKU"]
[]
[null,"Yrityksesi nimi"]
[null,"Yrityksesi iskulause"]
[null,"Katuosoite",null,"LASKUN NRO","Nro"]
[null,"Postinumero ja postitoimipaikka",null,"PÄIVÄMÄÄRÄ ",{"$f":"TODAY()","v":"2022-05-05"}]
[null,"Puhelin Faksi",null,"ASIAKASTUNNUS ","Tunnus"]
[null,"Sähköposti"]
[null,"VASTAANOTTAJA","Nimi"]
[null,null,"Yrityksen nimi"]
[null,null,"Katuosoite"]
[null,null,"Postinumero ja -toimipaikka"]
[null,null,"Puhelin"]
[null,"MYYJÄ","TYÖ","MAKSUEHDOT","ERÄPÄIVÄ"]
[{"$nulls":3},"Maksettava vastaanotettaessa"]
[]
[null,"MÄÄRÄ","KUVAUS","YKSIKKÖHINTA","RIVI YHTEENSÄ"]
[{"$nulls":4},{"$f":"IF(SUM(B18)>0,SUM(B18*Palvelulasku!$D18),\"\")","v":""}]
[{"$nulls":4},{"$f":"IF(SUM(B19)>0,SUM(B19*Palvelulasku!$D19),\"\")","v":""}]
[{"$nulls":4},{"$f":"IF(SUM(B20)>0,SUM(B20*Palvelulasku!$D20),\"\")","v":""}]
[{"$nulls":4},{"$f":"IF(SUM(B21)>0,SUM(B21*Palvelulasku!$D21),\"\")","v":""}]
[{"$nulls":4},{"$f":"IF(SUM(B22)>0,SUM(B22*Palvelulasku!$D22),\"\")","v":""}]
[{"$nulls":4},{"$f":"IF(SUM(B23)>0,SUM(B23*Palvelulasku!$D23),\"\")","v":""}]
[{"$nulls":4},{"$f":"IF(SUM(B24)>0,SUM(B24*Palvelulasku!$D24),\"\")","v":""}]
[{"$nulls":4},{"$f":"IF(SUM(B25)>0,SUM(B25*Palvelulasku!$D25),\"\")","v":""}]
[{"$nulls":4},{"$f":"IF(SUM(B26)>0,SUM(B26*Palvelulasku!$D26),\"\")","v":""}]
[{"$nulls":4},{"$f":"IF(SUM(B27)>0,SUM(B27*Palvelulasku!$D27),\"\")","v":""}]
[{"$nulls":4},{"$f":"IF(SUM(B28)>0,SUM(B28*Palvelulasku!$D28),\"\")","v":""}]
[{"$nulls":4},{"$f":"IF(SUM(B29)>0,SUM(B29*Palvelulasku!$D29),\"\")","v":""}]
[{"$nulls":4},{"$f":"IF(SUM(B30)>0,SUM(B30*Palvelulasku!$D30),\"\")","v":""}]
[{"$nulls":4},{"$f":"IF(SUM(B31)>0,SUM(B31*Palvelulasku!$D31),\"\")","v":""}]
[{"$nulls":4},{"$f":"IF(SUM(B32)>0,SUM(B32*Palvelulasku!$D32),\"\")","v":""}]
[{"$nulls":4},{"$f":"IF(SUM(B33)>0,SUM(B33*Palvelulasku!$D33),\"\")","v":""}]
[{"$nulls":4},{"$f":"IF(SUM(B34)>0,SUM(B34*Palvelulasku!$D34),\"\")","v":""}]
[{"$nulls":4},{"$f":"IF(SUM(B35)>0,SUM(B35*Palvelulasku!$D35),\"\")","v":""}]
[{"$nulls":4},{"$f":"IF(SUM(B36)>0,SUM(B36*Palvelulasku!$D36),\"\")","v":""}]
[{"$nulls":4},{"$f":"IF(SUM(B37)>0,SUM(B37*Palvelulasku!$D37),\"\")","v":""}]
[{"$nulls":3},"VÄLISUMMA",{"$f":"IF(SUM(E18:E37)>0,SUM(E18:E37),\"\")","v":""}]
[{"$nulls":3},"ALV"]
[{"$nulls":3},"YHTEENSÄ",{"$f":"IF(SUM(E38)>0,SUM((E38*E39)+E38),\"\")","v":""}]
[]
[null,"Kaikkien maksujen saaja",null,{"$f":"B3","v":"Yrityksesi nimi"}]
[]
[null,"KIITOS PALVELUIDEMME KÄYTTÄMISESTÄ."]